fUSD/lending_fUSD_20260427
["ID","MTS","AMOUNT","RATE_DAILY","PERIOD"]
[421235604,1777284723360,1026.52,0.00032876,120]
[421235605,1777284723549,924.49,0.00032876,120]
[421235606,1777284724976,500.0,0.00032876,120]
[421235607,1777284725959,656.37,0.00032876,120]
[421235608,1777284726123,500.0,0.00032876,120]
[421235609,1777284726752,500.0,0.00032876,120]
[421235610,1777284727783,1005.32,0.00032876,120]
[421235611,1777284728182,413.82519107,0.00032876,120]
[421235612,1777284730333,500.0,0.00032876,120]
[421235613,1777284730691,500.0,0.00032876,120]
[421235614,1777284731176,1868.75,0.00032876,120]
[421235615,1777284732255,2907.98,0.00032876,120]
[421235616,1777284732982,1118.09,0.00032876,120]
[421235617,1777284733649,500.0,0.00032876,120]
[421235618,1777284734266,500.0,0.00032876,120]
[421235619,1777284735636,500.0,0.00032876,120]
[421235620,1777284735730,500.0,0.00032876,120]
[421235621,1777284736353,559.89237559,0.00032876,120]
[421235622,1777284737078,500.0,0.00032876,120]
[421235623,1777284738292,806.48,0.00032876,120]
[421235624,1777284739218,667.25,0.00032876,120]
[421235625,1777284739648,500.0,0.00032876,120]
[421235626,1777284739691,500.0,0.00032876,120]
[421235627,1777284740101,500.0,0.00032876,120]
[421235628,1777284740320,500.0,0.00032876,120]
[421235629,1777284741717,1796.41,0.00032876,120]
[421235630,1777284741792,1493.06,0.00032876,120]
[421235631,1777284741879,586.88,0.00032876,120]
[421235632,1777284742252,500.0,0.00032876,120]
[421235633,1777284743452,252.54087703,0.00032876,120]
[421235634,1777284743757,500.0,0.00032876,120]
[421235635,1777284746339,500.0,0.00032876,120]
[421235636,1777284746401,555.55,0.00032876,120]
[421235637,1777284746457,1712.66,0.00032876,120]
[421235638,1777284747296,500.0,0.00032876,120]
[421235639,1777284747814,196.66020201,0.00032876,120]
[421235640,1777284747931,6613.59,0.00032876,120]
[421235641,1777284748047,2048.49,0.00032876,120]
[421235642,1777284748186,500.0,0.00032876,120]
[421235643,1777284748488,820.91,0.00032876,120]
[421235644,1777284749160,903.54,0.00032876,120]
[421235645,1777284749689,330.77726079,0.00032876,120]
[421235646,1777284750666,500.0,0.00032876,120]
[421235647,1777284750905,173.25473113,0.00032876,120]
[421235648,1777284750947,500.0,0.00032876,120]
[421235649,1777284751242,2070.0,0.00032876,120]
[421235650,1777284752247,500.0,0.00032876,120]
[421235651,1777284752407,619.37704978,0.000324,120]
[421235652,1777284752801,607.02,0.00032876,120]
[421235653,1777284753190,248.64603417,0.00032876,120]
[421235654,1777284754420,694.64,0.00032876,120]
[421235655,1777284755533,816.58,0.00032876,120]
[421235656,1777284755816,500.0,0.00032876,120]
[421235657,1777284755968,578.23979283,0.00032876,120]
[421235658,1777284756015,216.62471433,0.00032876,120]
[421235659,1777284756097,3550.94,0.00032876,120]
[421235660,1777284757800,986.22,0.00032876,120]
[421235661,1777284757854,500.0,0.00032876,120]
[421235662,1777284758134,500.0,0.00032876,120]
[421235663,1777284758309,500.0,0.00032876,120]
[421235664,1777284759020,500.0,0.00032876,120]
[421235665,1777284759694,760.12,0.00032876,120]
[421235666,1777284759991,500.0,0.00032876,120]
[421235667,1777284760559,500.0,0.00032876,120]
[421235668,1777284761528,857.8,0.00032876,120]
[421235669,1777284762074,500.0,0.00032876,120]
[421235670,1777284762159,500.0,0.00032876,120]
[421235671,1777284762847,2560.01,0.00032876,120]
[421235672,1777284763425,500.0,0.00032876,120]
[421235673,1777284763930,1330.79,0.00032876,120]
[421235674,1777284765225,500.0,0.00032876,120]
[421235675,1777284765793,246.37485307,0.00032876,120]
[421235676,1777284766152,1901.64,0.00032876,120]
[421235677,1777284766516,500.0,0.00032876,120]
[421235678,1777284767055,2028.84,0.00032876,120]
[421235679,1777284767742,183.59615072,0.00032876,120]
[421235680,1777284769443,726.02,0.00032876,120]
[421235681,1777284769606,500.0,0.00032876,120]
[421235682,1777284769757,260.87961942,0.00032876,120]
[421235683,1777284770256,500.0,0.00032876,120]
[421235684,1777284770535,2331.21,0.00032876,120]
[421235685,1777284771197,500.0,0.00032876,120]
[421235686,1777284771873,500.0,0.00032876,120]
[421235687,1777284773603,500.0,0.00032876,120]
[421235688,1777284773953,500.0,0.00032876,120]
[421235689,1777284774016,500.0,0.00032876,120]
[421235690,1777284774555,262.08936601,0.00032876,120]
[421235691,1777284774594,845.06,0.00032876,120]
[421235692,1777284774631,850.12,0.00032876,120]
[421235693,1777284775863,500.0,0.00032876,120]
[421235694,1777284776444,205.21913617,0.00032876,120]
[421235695,1777284776480,975.03,0.00032876,120]
[421235696,1777284776847,500.0,0.00032876,120]
[421235697,1777284778632,500.0,0.00032876,120]
[421235698,1777284778948,2593.92,0.00032876,120]
[421235699,1777284779465,215.58802449,0.00032876,120]
[421235700,1777284779609,2104.8,0.00012757,120]
[421235701,1777284781068,691.21,0.00032876,120]
[421235702,1777284781208,500.0,0.00032876,120]
[421235703,1777284781363,212.86275262,0.00032876,120]
[421235704,1777284782588,500.0,0.00032876,120]
[421235705,1777284783092,1149.68,0.00032876,120]
[421235706,1777284783279,1687.59,0.00032876,120]
[421235707,1777284783352,500.0,0.00032876,120]
[421235708,1777284783389,500.0,0.00032876,120]
[421235709,1777284783794,500.0,0.00032876,120]
[421235710,1777284784792,500.0,0.00032876,120]
[421235711,1777284784916,1126.71,0.00032876,120]
[421235712,1777284784998,248.9242091,0.00032876,120]
[421235713,1777284786193,637.1815,0.00032876,120]
[421235714,1777284786849,500.0,0.00032876,120]
[421235715,1777284788181,500.0,0.00032876,120]
[421235716,1777284789414,500.0,0.00032876,120]
[421235717,1777284789572,500.0,0.00032876,120]
[421235718,1777284790194,566.68546619,0.00032876,120]
[421235719,1777284790721,646.3,0.00032876,120]
[421235720,1777284791093,1851.02,0.00032876,120]
[421235721,1777284792075,996.25,0.00032876,120]
[421235722,1777284792124,173.08335158,0.00032876,120]
[421235723,1777284792319,500.0,0.00032876,120]
[421235724,1777284792355,500.0,0.00032876,120]
[421235725,1777284793187,500.0,0.00032876,120]
[421235726,1777284793553,500.0,0.00032876,120]
[421235727,1777284793762,424.64752925,0.00032876,120]
[421235728,1777284795056,263.21067442,0.00032876,120]
[421235729,1777284796279,300.0,0.00032877,120]
[421235730,1777284797047,500.0,0.00032876,120]
[421235731,1777284797364,1285.57,0.00032876,120]
[421235732,1777284797773,553.52,0.00032876,120]
[421235733,1777284798053,871.32,0.00032876,120]
[421235734,1777284798089,789.7,0.00032876,120]
[421235735,1777284798126,512.757329,0.00025691,120]
[421235736,1777284798465,500.0,0.00029724,120]
[421235737,1777284799133,741.62,0.00032876,120]
[421235738,1777284799902,824.72,0.00032876,120]
[421235739,1777284801983,1263.57,0.00032876,120]
[421235740,1777284804085,932.95,0.00032876,120]
[421235741,1777284804319,500.0,0.00032876,120]
[421235742,1777284804356,502.21116334,0.00032876,120]
[421235743,1777284804675,150.0,0.00032877,120]
[421235744,1777284805121,300.0,0.00032877,120]
[421235745,1777284805606,902.68,0.00032876,120]
[421235746,1777284806842,500.0,0.00032876,120]
[421235747,1777284806911,880.25,0.00032876,120]
[421235748,1777284807273,500.0,0.00032876,120]
[421235749,1777284807567,500.0,0.00032876,120]
[421235750,1777284808203,500.0,0.00032876,120]
[421235751,1777284811678,500.0,0.00032876,120]
[421235752,1777284811792,215.24281832,0.00032876,120]
[421235753,1777284812297,500.0,0.00032876,120]
[421235754,1777284812334,500.0,0.00032876,120]
[421235755,1777284812930,640.16,0.00032876,120]
[421235756,1777284812966,165.24659863,0.00032876,120]
[421235757,1777284814032,300.0,0.00032877,120]
[421235758,1777284814162,500.0,0.00032876,120]
[421235759,1777284814299,500.0,0.00032876,120]
[421235760,1777284814394,500.0,0.00032876,120]
[421235761,1777284814434,500.0,0.00032876,120]
[421235762,1777284814628,1152.3,0.00032876,120]
[421235763,1777284815105,1058.82,0.00032876,120]
[421235764,1777284816259,311.4845999,0.00032876,120]
[421235765,1777284816314,946.6,0.00032876,120]
[421235766,1777284817120,563.81,0.00032876,120]
[421235767,1777284817465,500.0,0.00032876,120]
[421235768,1777284817737,354.73415367,0.00032876,120]
[421235769,1777284817777,2212.41,0.00032876,120]
[421235770,1777284819768,507.17,0.00032876,120]
[421235771,1777284823460,300.0,0.00032877,120]
[421235772,1777284824084,500.0,0.00032876,120]
[421235773,1777284824171,268.05641805,0.00032876,120]
[421235774,1777284824235,1178.25,0.00032876,120]
[421235775,1777284824604,500.0,0.00032876,120]
[421235776,1777284825092,208.38989227,0.00032876,120]
[421235777,1777284825524,516.45,0.00032876,120]
[421235778,1777284827244,500.0,0.00032876,120]
[421235779,1777284828485,500.0,0.00032876,120]
[421235780,1777284829024,500.0,0.00032876,120]
[421235781,1777284829293,1292.06,0.00032876,120]
[421235782,1777284830529,500.0,0.00032876,120]
[421235783,1777284831213,500.0,0.00032876,120]
[421235784,1777284831258,885.91,0.00032876,120]
[421235785,1777284831606,1283.94,0.00032876,120]
[421235786,1777284832565,500.0,0.00032876,120]
[421235787,1777284832615,500.0,0.00032876,120]
[421235788,1777284834554,808.49,0.00032876,120]
[421235789,1777284835577,500.0,0.00032876,120]
[421235790,1777284836000,640.45,0.00032876,120]
[421235791,1777284837159,500.0,0.00032876,120]
[421235792,1777284837293,500.0,0.00032876,120]
[421235793,1777284837476,258.8026317,0.00032876,120]
[421235794,1777284840406,327.04245724,0.00032876,120]
[421235795,1777284841441,234.50021545,0.00032876,120]
[421235796,1777284842003,500.0,0.00032876,120]
[421235797,1777284842119,500.0,0.00032876,120]
[421235798,1777284843032,535.4795072,0.00032876,120]
[421235799,1777284843193,1000.0,0.00032876,120]
[421235800,1777284843825,371.01869655,0.00032876,120]
[421235801,1777284845026,500.0,0.00032876,120]
[421235802,1777284845545,615.52,0.00032876,120]
[421235803,1777284845742,500.0,0.00032876,120]
[421235804,1777284845789,639.05,0.00032876,120]
[421235805,1777284846475,500.0,0.00032876,120]
[421235806,1777284848059,500.0,0.00032876,120]
[421235807,1777284848179,500.0,0.00032876,120]
[421235808,1777284848271,500.0,0.00032876,120]
[421235809,1777284848317,500.0,0.00032876,120]
[421235810,1777284849427,500.0,0.00032876,120]
[421235811,1777284849477,500.0,0.00032876,120]
[421235812,1777284849560,500.0,0.00032876,120]
[421235813,1777284849929,500.0,0.00032876,120]
[421235814,1777284850161,2258.94,0.00032876,120]
[421235815,1777284850606,660.98,0.00032876,120]
[421235816,1777284852121,300.0,0.00032877,120]
[421235817,1777284852359,500.0,0.00032876,120]
[421235818,1777284852410,597.1,0.00032876,120]
[421235819,1777284854010,500.0,0.00032876,120]
[421235820,1777284854069,1023.68,0.00032876,120]
[421235821,1777284854173,500.0,0.00032876,120]
[421235822,1777284854441,500.0,0.00032876,120]
[421235823,1777284855095,686.76,0.00032876,120]
[421235824,1777284855199,500.0,0.00032876,120]
[421235825,1777284856360,551.36,0.00032876,120]
[421235826,1777284857258,581.24051218,0.00032876,120]
[421235827,1777284858633,500.0,0.00032876,120]
[421235828,1777284859071,350.1,0.00032877,120]
[421235829,1777284859174,500.0,0.00032876,120]
[421235830,1777284859715,1031.52,0.00032876,120]
[421235831,1777284859757,729.86,0.00032876,120]
[421235832,1777284861407,500.0,0.00032876,120]
[421235833,1777284861862,239.93729314,0.00032876,120]
[421235834,1777284862820,500.0,0.00032876,120]
[421235835,1777284863567,500.0,0.00032876,120]
[421235836,1777284863614,1960.52,0.00032876,120]
[421235837,1777284865136,500.0,0.00032876,120]
[421235838,1777284865930,500.0,0.00032876,120]
[421235839,1777284866751,500.0,0.00032876,120]
[421235840,1777284867122,854.64,0.00032876,120]
[421235841,1777284867876,916.78,0.00032876,120]
[421235842,1777284867924,332.58104705,0.00032876,120]
[421235843,1777284867972,854.82,0.00032876,120]
[421235844,1777284868848,500.0,0.00032876,120]
[421235845,1777284869402,500.0,0.00032876,120]
[421235846,1777284870778,500.0,0.00032876,120]
[421235847,1777284871378,500.0,0.00032876,120]
[421235848,1777284871447,953.58,0.00032876,120]
[421235849,1777284873501,500.0,0.00032876,120]
[421235850,1777284873592,932.07,0.00032876,120]
[421235851,1777284874696,500.0,0.00032876,120]
[421235852,1777284874966,922.63,0.00032876,120]
[421235853,1777284875829,1465.55,0.00032876,120]
[421235854,1777284876475,500.0,0.00032876,120]
[421235855,1777284876632,500.0,0.00032876,120]
[421235856,1777284877379,500.0,0.00032876,120]
[421235857,1777284878517,500.0,0.00032876,120]
[421235858,1777284880085,1896.8,0.00032876,120]
[421235859,1777284881089,500.0,0.00032876,120]
[421235860,1777284881136,3395.98,0.00032876,120]
[421235861,1777284881894,500.0,0.00032876,120]
[421235862,1777284882312,500.0,0.00032876,120]
[421235863,1777284882987,500.0,0.00032876,120]
[421235864,1777284883155,10171.92,0.00032876,120]
[421235865,1777284883758,714.89,0.00032876,120]
[421235866,1777284884285,209.95870283,0.00032876,120]
[421235867,1777284887989,500.0,0.00032876,120]
[421235868,1777284888078,500.0,0.00032876,120]
[421235869,1777284888411,500.0,0.00032876,120]
[421235870,1777284890161,500.0,0.00032876,120]
[421235871,1777284890349,739.88,0.00032876,120]
[421235872,1777284890637,500.0,0.00032876,120]
[421235873,1777284891793,697.0,0.00032876,120]
[421235874,1777284892210,160.36129614,0.00032876,120]
[421235875,1777284892307,1285.6,0.00032876,120]
[421235876,1777284893080,573.64,0.00032876,120]
[421235877,1777284894394,500.0,0.00032876,120]
[421235878,1777284896186,500.0,0.00032876,120]
[421235879,1777284896306,500.0,0.00032876,120]
[421235880,1777284896570,500.0,0.00032876,120]
[421235881,1777284897345,507.09802575,0.00032876,120]
[421235882,1777284897626,617.99,0.00032876,120]
[421235883,1777284899946,1337.39,0.00032876,120]
[421235884,1777284900158,2067.62,0.00032876,120]
[421235885,1777284900557,1786.08,0.00032876,120]
[421235886,1777284900601,500.0,0.00032876,120]
[421235887,1777284901089,500.0,0.0003287,120]
[421235888,1777284902963,663.0,0.00032877,120]
[421235889,1777284903025,1045.11,0.00032876,120]
[421235890,1777284903085,500.0,0.00032876,120]
[421235891,1777284903593,500.0,0.00032876,120]
[421235892,1777284904442,1836.71,0.00032876,120]
[421235893,1777284905675,500.0,0.00032876,120]
[421235894,1777284906363,500.0,0.00032876,120]
[421235895,1777284906474,346.25285695,0.00032876,120]
[421235896,1777284908031,500.0,0.00032876,120]
[421235897,1777284909853,500.0,0.00032876,120]
[421235898,1777284910164,500.0,0.00032876,120]
[421235899,1777284911274,500.0,0.00032876,120]
[421235900,1777284911496,817.83,0.00032876,120]
[421235901,1777284912069,500.0,0.00032876,120]
[421235902,1777284912415,283.28367178,0.00032876,120]
[421235903,1777284912777,939.45,0.00032876,120]
[421235904,1777284913007,748.29,0.00032876,120]
[421235905,1777284913571,500.0,0.00032876,120]
[421235906,1777284913699,500.0,0.00032876,120]
[421235907,1777284914367,1464.76,0.00032876,120]
[421235908,1777284914465,500.0,0.00032876,120]
[421235909,1777284918347,500.0,0.00032876,120]
[421235910,1777284918529,461.15261338,0.00032876,120]
[421235911,1777284919988,500.0,0.00032876,120]
[421235912,1777284920223,500.0,0.00032876,120]
[421235913,1777284920336,500.0,0.00032876,120]
[421235914,1777284921272,500.0,0.00032876,120]
[421235915,1777284921339,500.0,0.00032876,120]
[421235916,1777284921530,500.0,0.00032876,120]
[421235917,1777284922008,500.0,0.00032876,120]
[421235918,1777284922074,500.0,0.00032876,120]
[421235919,1777284923557,590.90246601,0.00032876,120]
[421235920,1777284925263,996.98,0.00032876,120]
[421235921,1777284925771,500.0,0.00032876,120]
[421235922,1777284926436,442.43258271,0.00032876,120]
[421235923,1777284928105,331.26248475,0.00032876,120]
[421235924,1777284928262,194.35643986,0.00032876,120]
[421235925,1777284929238,721.15,0.00032876,120]
[421235926,1777284929789,500.0,0.00032876,120]
[421235927,1777284930975,699.2,0.00032876,120]
[421235928,1777284931070,500.0,0.00032876,120]
[421235929,1777284931341,825.7,0.00032876,120]
[421235930,1777284931491,500.0,0.00032876,120]
[421235931,1777284931630,500.0,0.00032876,120]
[421235932,1777284932030,1528.05,0.00032876,120]
[421235933,1777284932131,500.0,0.00032876,120]
[421235934,1777284932641,500.0,0.00032876,120]
[421235935,1777284932792,500.0,0.00032876,120]
[421235936,1777284933007,923.43,0.00032876,120]
[421235937,1777284933382,500.0,0.00032876,120]
[421235938,1777284933427,840.29,0.00032876,120]
[421235939,1777284933538,500.0,0.00032876,120]
[421235940,1777284933828,500.0,0.00032876,120]
[421235941,1777284934083,500.0,0.00032876,120]
[421235942,1777284934898,1224.66,0.00032876,120]
[421235943,1777284935523,947.63,0.00032876,120]
[421235944,1777284936035,1013.37,0.00032876,120]
[421235945,1777284937885,276.19556969,0.00032876,120]
[421235946,1777284938012,500.0,0.00032876,120]
[421235947,1777284938809,4098.17,0.00032876,120]
[421235948,1777284939467,500.0,0.00032876,120]
[421235949,1777284939675,500.0,0.00032876,120]
[421235950,1777284940150,500.0,0.00032876,120]
[421235951,1777284940795,502.87352624,0.00032876,120]
[421235952,1777284942287,500.0,0.00032876,120]
[421235953,1777284942497,500.0,0.00032876,120]
[421235954,1777284942668,500.0,0.00032876,120]
[421235955,1777284942719,500.0,0.00032876,120]
[421235956,1777284944065,500.0,0.00032876,120]
[421235957,1777284944470,500.0,0.00032876,120]
[421235958,1777284944735,500.0,0.00032876,120]
[421235959,1777284946029,698.74,0.00032876,120]
[421235960,1777284946351,500.0,0.00032876,120]
[421235961,1777284947084,500.7567482,0.00032876,120]
[421235962,1777284947279,1663.61,0.00032876,120]
[421235963,1777284947641,544.78,0.00032876,120]
[421235964,1777284948712,500.0,0.00032876,120]
[421235965,1777284948770,543.69946342,0.00032876,120]
[421235966,1777284948910,1022.75,0.00032876,120]
[421235967,1777284950639,500.0,0.00032876,120]
[421235968,1777284950739,485.21891673,0.00032876,120]
[421235969,1777284950791,500.0,0.00032876,120]
[421235970,1777284951642,500.0,0.00032876,120]
[421235971,1777284952618,500.0,0.00032876,120]
[421235972,1777284952668,160.86920056,0.00032876,120]
[421235973,1777284952835,500.0,0.00032876,120]
[421235974,1777284952897,500.0,0.00032876,120]
[421235975,1777284952952,500.0,0.00032876,120]
[421235976,1777284953492,500.0,0.00032876,120]
[421235977,1777284953837,500.0,0.00032876,120]
[421235978,1777284954093,291.39217053,0.00032876,120]
[421235979,1777284954340,500.0,0.00032876,120]
[421235980,1777284954459,500.0,0.00032876,120]
[421235981,1777284954835,500.0,0.00032876,120]
[421235982,1777284955126,500.0,0.00032876,120]
[421235983,1777284955826,500.0,0.00032876,120]
[421235984,1777284956399,571.92,0.00032876,120]
[421235985,1777284956483,2057.82,0.00032876,120]
[421235986,1777284956719,2786.81,0.00032876,120]
[421235987,1777284956806,500.0,0.00032876,120]
[421235988,1777284957512,500.0,0.00032876,120]
[421235989,1777284957661,792.37,0.00032876,120]
[421235990,1777284957723,500.0,0.00032876,120]
[421235991,1777284957982,500.0,0.00032876,120]
[421235992,1777284959795,500.0,0.00032876,120]
[421235993,1777284959880,748.52,0.00032876,120]
[421235994,1777284960122,500.0,0.00032876,120]
[421235995,1777284961002,2301.77,0.00032876,120]
[421235996,1777284961788,500.0,0.00032876,120]
[421235997,1777284962287,580.92,0.00032876,120]
[421235998,1777284962359,500.0,0.00032876,120]
[421235999,1777284962404,861.18,0.00032876,120]
[421236000,1777284963271,200.0,0.0003287,120]
[421236001,1777284963440,500.0,0.00032876,120]
[421236002,1777284964723,500.0,0.00032876,120]
[421236003,1777284964801,980.13,0.00032876,120]
[421236004,1777284964973,500.0,0.00032876,120]
[421236005,1777284965240,175.14104339,0.00032876,120]
[421236006,1777284965423,500.0,0.00032876,120]
[421236007,1777284965673,1270.29,0.00032876,120]
[421236008,1777284966465,500.0,0.00032876,120]
[421236009,1777284967625,500.0,0.00032876,120]
[421236010,1777284968303,500.0,0.00032876,120]
[421236011,1777284968351,275.88437148,0.00032876,120]
[421236012,1777284968671,6481.11,0.00032876,120]
[421236013,1777284968880,544.01,0.00032876,120]
[421236014,1777284969043,500.0,0.00032876,120]
[421236015,1777284970118,501.43105417,0.00032876,120]
[421236016,1777284970795,500.0,0.00032876,120]
[421236017,1777284970841,180.0,0.00032713,120]
[421236018,1777284970996,483.31918486,0.00032876,120]
[421236019,1777284971281,500.0,0.00032876,120]
[421236020,1777284971333,500.0,0.00032876,120]
[421236021,1777284971377,626.98,0.00032876,120]
[421236022,1777284971848,500.0,0.00032876,120]
[421236023,1777284972063,501.65344693,0.00032876,120]
[421236024,1777284974087,500.0,0.00032876,120]
[421236025,1777284974169,274.37266022,0.00032876,120]
[421236026,1777284974336,500.0,0.00032876,120]
[421236027,1777284974394,500.0,0.00032876,120]
[421236028,1777284974480,500.0,0.00032876,120]
[421236029,1777284974828,997.41,0.00032876,120]
[421236030,1777284974875,500.0,0.00032876,120]
[421236031,1777284974968,500.0,0.00032876,120]
[421236032,1777284975765,531.34,0.00032876,120]
[421236033,1777284975847,500.0,0.00032876,120]
[421236034,1777284976344,670.88,0.00032876,120]
[421236035,1777284976407,500.0,0.00032876,120]
[421236036,1777284976907,500.0,0.00032876,120]
[421236037,1777284977135,4060.5895235,0.0003287,120]
[421236038,1777284977191,500.0,0.00032876,120]
[421236039,1777284977413,626.44,0.00032876,120]
[421236040,1777284978601,500.0,0.00032876,120]
[421236041,1777284978974,193.0019004,0.00032876,120]
[421236042,1777284979193,500.0,0.00032876,120]
[421236043,1777284979258,500.0,0.00032876,120]
[421236044,1777284979313,607.22,0.00032876,120]
[421236045,1777284979869,363.77834733,0.00032876,120]
[421236046,1777284980525,451.66286267,0.00032876,120]
[421236047,1777284980777,276.22092156,0.00032876,120]
[421236048,1777284980997,231.86927999,0.00032876,120]
[421236049,1777284981041,500.0,0.00032876,120]
[421236050,1777284981084,500.0,0.00032876,120]
[421236051,1777284981251,1963.13,0.00032876,120]
[421236052,1777284982331,825.3,0.00032876,120]
[421236053,1777284983054,245.10843003,0.00032876,120]
[421236054,1777284983196,500.0,0.00032876,120]
[421236055,1777284983327,500.0,0.00032876,120]
[421236056,1777284983998,1251.74,0.00032876,120]
[421236057,1777284984653,500.0,0.00032876,120]
[421236058,1777284984697,500.0,0.00032876,120]
[421236059,1777284984939,500.0,0.00032876,120]
[421236060,1777284985327,500.0,0.00032876,120]
[421236061,1777284985646,500.0,0.00032876,120]
[421236062,1777284986186,500.0,0.00032876,120]
[421236063,1777284986806,1112.82,0.00032876,120]
[421236064,1777284987598,500.0,0.00032876,120]
[421236065,1777284988639,3402.99,0.00032876,120]
[421236066,1777284989381,571.84,0.00032876,120]
[421236067,1777284990353,500.0,0.00032876,120]
[421236068,1777284990590,1368.64,0.00032876,120]
[421236069,1777284990816,273.92450363,0.00032876,120]
[421236070,1777284991157,2234.07,0.00032876,120]
[421236071,1777284991204,500.0,0.00032876,120]
[421236072,1777284991400,957.19,0.00032876,120]
[421236073,1777284991655,500.0,0.00032876,120]
[421236074,1777284992373,500.0,0.00032876,120]
[421236075,1777284992832,500.0,0.00032876,120]
[421236076,1777284993231,2207.51,0.00032876,120]
[421236077,1777284993982,504.48123421,0.00032876,120]
[421236078,1777284994579,500.0,0.00032876,120]
[421236079,1777284996060,500.0,0.00032876,120]
[421236080,1777284996668,500.0,0.00032876,120]
[421236081,1777284996784,247.86786338,0.00032876,120]
[421236082,1777284997283,500.0,0.00032876,120]
[421236083,1777284997379,500.0,0.00032876,120]
[421236084,1777284998745,1430.85,0.00032876,120]
[421236085,1777284998921,500.0,0.00032876,120]
[421236086,1777284999099,675.34,0.00032876,120]
[421236087,1777284999272,500.0,0.00032876,120]
[421236088,1777284999315,500.0,0.00032876,120]
[421236089,1777285000069,500.0,0.00032876,120]
[421236090,1777285000263,1535.57,0.00032876,120]
[421236091,1777285000411,500.0,0.00032876,120]
[421236092,1777285000586,231.75577415,0.00032876,120]
[421236093,1777285000633,500.0,0.00032876,120]
[421236094,1777285000703,500.0,0.00032876,120]
[421236095,1777285001490,506.3678048,0.00032876,120]
[421236096,1777285002176,500.0,0.00032876,120]
[421236097,1777285002601,500.0,0.00032876,120]
[421236098,1777285003983,500.0,0.00032876,120]
[421236099,1777285004296,1229.77,0.00032876,120]
[421236100,1777285004420,945.12,0.00032876,120]
[421236101,1777285004647,354.323926,0.00032876,120]
[421236102,1777285006070,202.6202437,0.00032876,120]
[421236103,1777285006207,500.0,0.00032876,120]